bitfinex-derivatives/quotes_BTCF0:USTF0_20240824
["timestamp","ask_amount","ask_price","bid_price","bid_amount"]
[1724495115282,0.03523701,64335.0,64334.0,0.54791427]
[1724495115476,0.03323701,64335.0,64334.0,0.54791427]
[1724495116088,0.03323701,64335.0,64334.0,0.528484]
[1724495117291,0.17466036,64335.0,64334.0,0.528484]
[1724495117987,0.17466036,64335.0,64334.0,0.4508]
[1724495118691,0.17466036,64335.0,64334.0,0.528484]
[1724495119988,0.17466036,64335.0,64334.0,0.55277155]
[1724495120379,0.00323326,64335.0,64334.0,0.5722014]
[1724495121185,0.00323326,64335.0,64334.0,0.55277155]
[1724495121893,0.08083429,64335.0,64334.0,1.1162054]
[1724495122195,0.00323326,64335.0,64334.0,1.1938894]
[1724495122494,0.00323326,64335.0,64334.0,1.5938894]
[1724495122695,0.00323326,64335.0,64334.0,1.1938894]
[1724495122995,0.065284,64335.0,64334.0,1.5938894]
[1724495123291,0.09630868,64335.0,64334.0,1.5939294]
[1724495123493,0.00323326,64335.0,64334.0,1.5939294]
[1724495123795,0.0962753,64335.0,64334.0,1.5939294]
[1724495124694,0.00323326,64335.0,64334.0,1.5939294]
[1724495125090,0.00323326,64335.0,64334.0,1.550212]
[1724495125290,0.00323326,64335.0,64334.0,1.59392205]
[1724495126292,0.00123326,64335.0,64334.0,1.60292205]
[1724495127195,0.00123326,64335.0,64334.0,1.61092205]
[1724495127597,0.00123326,64335.0,64334.0,1.25012205]
[1724495127788,0.00123326,64335.0,64334.0,1.94743869]
[1724495128390,0.126562,64352.0,64336.0,0.077682]
[1724495128592,0.126562,64352.0,64350.0,0.13642773]
[1724495128794,0.077663,64351.0,64350.0,0.13642773]
[1724495129799,0.077663,64351.0,64350.0,0.091]
[1724495130493,0.084663,64351.0,64350.0,0.091]
[1724495131290,0.20885436,64351.0,64350.0,0.091]
[1724495131486,0.27688387,64351.0,64350.0,0.091]
[1724495131691,0.15269251,64351.0,64350.0,0.091]
[1724495131891,0.15269251,64351.0,64350.0,0.092]
[1724495132491,0.15269251,64351.0,64350.0,0.169665]
[1724495132899,0.11466184,64351.0,64350.0,0.169665]
[1724495134098,0.28232484,64351.0,64350.0,0.002]
[1724495134297,0.077671,64345.0,64344.0,0.00023326]
[1724495134492,0.077671,64345.0,64339.0,0.22163154]
[1724495134493,0.077677,64340.0,64339.0,0.22163154]
[1724495134697,2.48395828,64340.0,64339.0,0.22163154]
[1724495135199,2.48400214,64340.0,64339.0,0.22163154]
[1724495135595,2.01772217,64340.0,64339.0,0.22163154]
[1724495136792,2.01772217,64340.0,64339.0,0.22463154]
[1724495137187,2.01772217,64340.0,64339.0,0.22763154]
[1724495137394,1.987717,64340.0,64339.0,0.22763154]
[1724495137894,2.04972292,64340.0,64339.0,0.22463154]
[1724495138197,1.989717,64340.0,64339.0,0.31563154]
[1724495138407,0.00204,64340.0,64339.0,0.39030954]
[1724495138592,0.00904,64340.0,64339.0,0.39130954]
[1724495139393,0.00904,64340.0,64339.0,0.41485369]
[1724495139899,0.00904,64340.0,64339.0,0.19322215]
[1724495140297,0.13323136,64340.0,64339.0,0.19322215]
[1724495140697,0.07707452,64340.0,64339.0,0.19322215]
[1724495140897,0.03904105,64340.0,64339.0,0.19322215]
[1724495143600,0.03904105,64340.0,64339.0,0.55402215]
[1724495144902,0.07707194,64340.0,64339.0,0.55402215]
[1724495145204,0.03903991,64340.0,64339.0,0.55402215]
[1724495147107,0.03904001,64340.0,64339.0,0.55402215]
[1724495147504,0.03904001,64340.0,64339.0,0.19322215]
[1724495147806,0.03904001,64340.0,64339.0,0.55402215]
[1724495149501,0.00904,64340.0,64339.0,0.55402215]
[1724495150107,0.00904,64340.0,64339.0,0.57830623]
[1724495154509,0.00904,64340.0,64339.0,0.40734676]
[1724495154510,0.63820268,64340.0,64339.0,0.40734676]
[1724495154710,0.63820268,64340.0,64339.0,0.13654676]
[1724495154911,0.63820268,64340.0,64339.0,0.57502476]
[1724495156404,0.00904,64340.0,64339.0,0.57502476]
[1724495157204,0.00904,64340.0,64339.0,0.48502476]
[1724495157401,0.00904,64340.0,64339.0,0.57502476]
[1724495160011,0.00904,64340.0,64339.0,0.21422476]
[1724495160406,0.00904,64340.0,64339.0,0.57502476]
[1724495161016,0.00904,64340.0,64339.0,0.21422476]
[1724495161216,0.00904,64340.0,64339.0,0.57502476]
[1724495161519,0.00904,64340.0,64339.0,0.59445201]
[1724495161910,0.00904,64340.0,64339.0,0.23365201]
[1724495162216,0.00904,64340.0,64339.0,0.59445201]
[1724495163117,0.00904,64340.0,64339.0,0.23365201]
[1724495163417,0.00904,64340.0,64339.0,0.59445201]
[1724495165412,0.00904,64340.0,64339.0,0.57016793]
[1724495167922,0.00904,64340.0,64339.0,0.20936793]
[1724495168120,0.00904,64340.0,64339.0,0.57016793]
[1724495169024,0.00904,64340.0,64339.0,0.57016792]
[1724495170716,0.00904,64340.0,64339.0,0.20936792]
[1724495171325,0.10211102,64340.0,64339.0,0.57016792]
[1724495171828,0.00904,64340.0,64339.0,0.57016792]
[1724495172122,0.10224208,64340.0,64339.0,0.57016792]
[1724495172420,0.00904,64340.0,64339.0,0.67212976]
[1724495172614,0.00904,64340.0,64339.0,0.72112976]
[1724495173727,0.00704,64340.0,64339.0,0.72112976]
[1724495174019,0.00904,64340.0,64339.0,0.72112976]
[1724495174915,0.00904,64340.0,64339.0,0.36032976]
[1724495175324,0.00904,64340.0,64339.0,1.08192976]
[1724495175732,0.09096982,64344.0,64339.0,1.83938389]
[1724495175927,0.04582,64354.0,64344.0,0.155344]
[1724495175928,0.07766252,64345.0,64344.0,0.155344]
[1724495176224,0.00032,64354.0,64353.0,0.077661]
[1724495176424,0.11599257,64354.0,64353.0,0.93297208]
[1724495176811,0.11599257,64354.0,64353.0,0.94056174]
[1724495177022,0.11599257,64354.0,64353.0,0.94060174]
[1724495177719,0.17168084,64354.0,64353.0,0.92117459]
[1724495177916,0.03599257,64354.0,64353.0,1.88441768]
[1724495178520,0.20649362,64354.0,64353.0,1.84071166]
[1724495178718,0.20048895,64354.0,64353.0,1.88440644]
[1724495178933,0.0299879,64354.0,64353.0,1.88540644]
[1724495179223,0.18488555,64354.0,64353.0,1.88540644]
[1724495179421,0.0299879,64354.0,64353.0,1.88540644]
[1724495179622,0.0299879,64354.0,64353.0,1.88440644]
[1724495180020,0.0299879,64354.0,64353.0,1.90698653]
[1724495180715,0.0299879,64354.0,64353.0,1.88271165]
[1724495181525,0.0299879,64354.0,64353.0,2.73791165]
[1724495181828,0.0299879,64354.0,64353.0,2.73791157]
[1724495182221,0.00023326,64357.0,64356.0,0.077657]
[1724495182523,0.00023326,64357.0,64356.0,0.18707682]
[1724495182827,0.03022111,64357.0,64356.0,0.65323682]
[1724495183422,0.10842846,64362.0,64361.0,0.077651]
[1724495183628,0.10842846,64362.0,64361.0,0.528451]
[1724495185226,0.10842846,64362.0,64361.0,0.530491]
[1724495187227,0.10842846,64362.0,64361.0,0.891291]
[1724495187729,0.10842846,64362.0,64361.0,0.98540527]
[1724495188126,0.10842846,64362.0,64361.0,0.96113034]
[1724495188334,0.10842846,64362.0,64361.0,0.98540537]
[1724495188634,0.10842846,64362.0,64361.0,0.93911737]
[1724495188931,0.10842846,64362.0,64361.0,0.93811729]
[1724495189131,0.10842846,64362.0,64361.0,0.93811742]
[1724495189528,0.10842846,64362.0,64361.0,0.93711742]
[1724495190227,0.10842846,64362.0,64361.0,0.98339823]
[1724495191232,0.10842846,64362.0,64361.0,0.95984689]
[1724495192133,0.10842846,64362.0,64361.0,0.91356608]
[1724495192337,0.10842846,64362.0,64361.0,0.95984689]
[1724495192639,0.10842846,64362.0,64361.0,0.93682061]
[1724495193335,0.04773307,64368.0,64361.0,0.93682061]
[1724495193543,0.077644,64367.0,64362.0,0.10192508]
[1724495193743,0.077645,64366.0,64362.0,0.07765]
[1724495194944,0.077645,64366.0,64363.0,0.077648]
[1724495195241,0.077645,64366.0,64365.0,0.09]
[1724495195737,0.077645,64366.0,64365.0,0.4508]
[1724495196343,0.077645,64366.0,64365.0,0.528446]
[1724495198748,0.077645,64366.0,64365.0,0.167646]
[1724495198948,0.077645,64366.0,64365.0,0.528446]
[1724495200050,0.077645,64366.0,64365.0,0.438446]
[1724495200359,0.077645,64366.0,64365.0,0.528446]
[1724495200560,0.077645,64366.0,64365.0,0.4508]
[1724495201455,0.077645,64366.0,64365.0,0.3608]
[1724495201654,0.077645,64366.0,64365.0,0.4508]
[1724495202356,0.077645,64366.0,64361.0,0.10094553]
[1724495202357,0.07765,64362.0,64361.0,0.02329453]
[1724495202561,0.07765,64362.0,64361.0,4e-05]
[1724495202751,0.54377,64362.0,64361.0,4e-05]
[1724495202948,0.59177,64362.0,64361.0,4e-05]
[1724495204060,0.12565,64362.0,64361.0,4e-05]
[1724495209061,0.2033,64362.0,64361.0,4e-05]
[1724495210456,0.31898341,64362.0,64361.0,4e-05]
[1724495210661,0.27132071,64362.0,64361.0,4e-05]
[1724495211364,0.41072873,64362.0,64361.0,4e-05]
[1724495212175,0.36132071,64362.0,64361.0,4e-05]
[1724495212766,0.38479249,64362.0,64361.0,4e-05]
[1724495213070,0.36132071,64362.0,64361.0,4e-05]
[1724495214066,0.27132071,64362.0,64361.0,4e-05]
[1724495214462,0.2033,64362.0,64361.0,4e-05]
[1724495215168,1.06942,64362.0,64361.0,4e-05]
[1724495215672,2.97942,64362.0,64361.0,4e-05]
[1724495218767,3.06942,64362.0,64361.0,4e-05]
[1724495220460,1.15942,64362.0,64361.0,4e-05]
[1724495220973,3.06942,64362.0,64361.0,4e-05]
[1724495221979,1.15942,64362.0,64361.0,4e-05]
[1724495224577,0.75942,64362.0,64361.0,4e-05]
[1724495227682,0.85240079,64362.0,64361.0,4e-05]
[1724495229280,0.75942,64362.0,64361.0,4e-05]
[1724495230476,0.85254926,64362.0,64361.0,4e-05]
[1724495231478,0.38642926,64362.0,64361.0,4e-05]
[1724495232186,0.2933,64362.0,64361.0,4e-05]
[1724495233876,0.155316,64355.0,64353.0,0.04643667]
[1724495234089,0.15533,64350.0,64349.0,0.06936993]
[1724495234288,0.077667,64348.0,64347.0,0.04666993]
[1724495234582,0.167667,64348.0,64347.0,0.00023326]
[1724495235383,0.167667,64348.0,64347.0,0.02327698]
[1724495235887,0.167667,64348.0,64347.0,0.03727698]
[1724495236983,0.167667,64348.0,64347.0,0.04627698]
[1724495237289,0.167667,64348.0,64347.0,0.12026615]
[1724495237886,0.167667,64348.0,64347.0,0.10826615]
[1724495238185,0.167667,64348.0,64347.0,0.11626669]
[1724495239285,0.167667,64348.0,64347.0,0.05427698]
[1724495239488,0.167667,64348.0,64347.0,0.11626669]
[1724495240077,0.167667,64348.0,64347.0,0.09322297]
[1724495240288,0.245334,64348.0,64347.0,0.07771363]
[1724495240490,0.245334,64348.0,64347.0,0.03123326]
[1724495240791,1.189201,64348.0,64347.0,0.03123326]
[1724495240982,0.077678,64339.0,64335.0,0.06198971]
[1724495241283,0.077684,64334.0,64333.0,0.42278971]
[1724495241484,0.077684,64334.0,64333.0,0.38390597]
[1724495242687,0.077684,64334.0,64333.0,0.39790597]
[1724495242885,0.077684,64334.0,64333.0,0.47559097]
[1724495244890,0.077684,64334.0,64333.0,0.52201384]
[1724495245194,0.078684,64334.0,64333.0,0.53401384]
[1724495245385,0.078684,64334.0,64333.0,0.48759097]
[1724495245894,0.078684,64334.0,64333.0,0.53401384]
[1724495246094,0.078684,64334.0,64333.0,0.48759097]
[1724495250692,0.078684,64334.0,64333.0,0.12679097]
[1724495258300,0.078684,64334.0,64333.0,0.04910597]
[1724495258301,0.156368,64334.0,64333.0,0.04910597]
[1724495258492,0.517168,64334.0,64333.0,0.026]
[1724495267803,0.156368,64334.0,64333.0,0.026]
[1724495269910,0.156368,64334.0,64333.0,0.07242287]
[1724495270309,0.156368,64334.0,64333.0,0.026]
[1724495273207,2.066368,64334.0,64333.0,0.026]
[1724495275415,0.001,64334.0,64333.0,0.103685]
[1724495276515,0.00104,64334.0,64333.0,0.103685]
[1724495277511,0.00104,64334.0,64333.0,0.37143778]
[1724495277711,0.00104,64334.0,64333.0,0.37143754]
[1724495278111,0.10086773,64346.0,64339.0,0.077678]
[1724495278415,0.528471,64345.0,64339.0,0.22970312]
[1724495278617,0.529271,64345.0,64339.0,0.22970312]
[1724495278818,0.529271,64345.0,64339.0,0.22974312]
[1724495279115,0.077672,64344.0,64339.0,0.22974312]
[1724495279321,0.00223307,64340.0,64339.0,0.24874312]
[1724495279917,0.00223307,64340.0,64339.0,0.186718]
[1724495280520,0.00223307,64340.0,64339.0,0.547518]
[1724495280917,0.00223307,64340.0,64339.0,0.5940307]
[1724495281110,0.00223307,64340.0,64339.0,0.6415215]
[1724495281419,0.00223307,64340.0,64339.0,0.59502777]
[1724495281820,0.00223307,64340.0,64339.0,0.6415215]
[1724495282322,0.00223307,64340.0,64339.0,0.59502777]
[1724495285722,0.00223307,64340.0,64339.0,0.59502801]
[1724495286117,0.09316962,64353.0,64339.0,1.38363001]
[1724495286430,0.077652,64361.0,64349.0,0.3608]
[1724495286728,0.077652,64361.0,64358.0,0.09]
[1724495286924,0.077652,64361.0,64359.0,0.077653]
[1724495287119,0.08996,64360.0,64359.0,0.077653]
[1724495287321,0.09,64360.0,64359.0,0.077653]
[1724495288421,0.09,64360.0,64355.0,0.438458]
[1724495288422,0.077657,64356.0,64355.0,0.438458]
[1724495288620,0.167657,64356.0,64355.0,0.438458]
[1724495288815,0.23568032,64356.0,64355.0,0.438458]
[1724495289026,0.23568035,64356.0,64355.0,0.438458]
[1724495289225,0.30601027,64356.0,64355.0,0.077658]
[1724495290316,0.23572233,64356.0,64355.0,0.077658]
[1724495291328,0.23672233,64356.0,64355.0,0.077658]
[1724495292822,0.168697,64356.0,64355.0,0.077658]
[1724495297827,0.19869522,64356.0,64355.0,0.077658]
[1724495298535,0.10869522,64356.0,64355.0,0.077658]
[1724495298831,0.19869522,64356.0,64355.0,0.077658]
[1724495299543,0.19869522,64356.0,64354.0,0.00023307]
[1724495299544,0.067658,64355.0,64354.0,0.00023307]
[1724495299732,0.14755622,64355.0,64354.0,0.00023307]
[1724495300432,0.14759622,64355.0,64354.0,0.00023307]
[1724495301830,0.117598,64355.0,64354.0,0.00023307]
[1724495302235,2.027598,64355.0,64354.0,0.00023307]
[1724495302435,0.117598,64355.0,64354.0,0.00023307]
[1724495305238,0.207598,64355.0,64354.0,0.00023307]
[1724495305829,0.285256,64355.0,64354.0,0.00023307]
[1724495309140,0.646056,64355.0,64354.0,0.00023307]
[1724495311536,0.66933426,64355.0,64354.0,0.00023307]
[1724495315434,0.077668,64347.0,64346.0,0.04649373]
[1724495315641,0.077668,64347.0,64344.0,0.04649373]
[1724495315642,0.528468,64347.0,64344.0,0.04649373]
[1724495315944,0.528468,64347.0,64334.0,0.4508]
[1724495315945,0.077673,64343.0,64342.0,0.04649373]
[1724495316138,0.077674,64342.0,64341.0,0.04649373]
[1724495316439,0.167674,64342.0,64341.0,0.04648885]
[1724495316837,0.077676,64340.0,64339.0,0.077678]
[1724495317746,0.077716,64340.0,64339.0,0.077678]
[1724495318142,0.077716,64340.0,64339.0,0.091678]
[1724495318338,0.078716,64340.0,64339.0,0.091678]
[1724495319137,0.078716,64340.0,64339.0,0.13814357]
[1724495319341,0.078716,64340.0,64339.0,0.014]
[1724495319746,0.078716,64340.0,64339.0,0.02]
[1724495319747,0.079716,64340.0,64339.0,0.02]
[1724495324145,0.169716,64340.0,64339.0,0.02]
[1724495324344,0.079716,64340.0,64339.0,0.097678]
[1724495327742,0.00204,64340.0,64339.0,0.097678]
[1724495334554,0.00204,64340.0,64339.0,0.14414357]
[1724495336152,0.00204,64340.0,64339.0,0.097678]
[1724495339355,0.03204307,64340.0,64339.0,0.097678]
[1724495340554,0.07007909,64340.0,64339.0,0.097678]
[1724495340749,0.03204307,64340.0,64339.0,0.097678]
[1724495342164,0.00204,64340.0,64339.0,0.097678]
[1724495346065,0.09204,64340.0,64339.0,0.097678]
[1724495352163,0.09204,64340.0,64339.0,0.17522222]
[1724495352367,0.09204,64340.0,64339.0,0.12196508]
[1724495353878,0.169716,64340.0,64339.0,0.12196508]
[1724495354579,0.169716,64340.0,64339.0,0.12196523]
[1724495357669,0.169716,64340.0,64339.0,0.097678]
[1724495357868,0.169716,64340.0,64339.0,0.12196524]
[1724495360472,0.169716,64340.0,64339.0,0.31787574]
[1724495360870,0.169716,64340.0,64339.0,0.31787573]
[1724495363976,0.169716,64340.0,64339.0,0.24033145]
[1724495368380,0.169716,64340.0,64339.0,0.21604422]
[1724495371381,0.169716,64340.0,64339.0,0.2403314]
[1724495375076,0.23775531,64340.0,64339.0,0.12196518]
[1724495378086,0.37722649,64340.0,64339.0,0.12196518]
[1724495378687,0.37722651,64340.0,64339.0,0.12196518]
[1724495379075,0.169716,64340.0,64339.0,0.24033121]
[1724495383792,0.169716,64340.0,64339.0,0.21604403]
[1724495383986,0.169716,64340.0,64339.0,0.24033121]
[1724495386296,0.169716,64340.0,64339.0,0.16265321]
[1724495387489,0.530516,64340.0,64339.0,0.04428718]
[1724495390287,0.608192,64340.0,64339.0,0.04428908]
[1724495390595,0.608192,64340.0,64339.0,0.06653512]
[1724495390785,0.608192,64340.0,64339.0,0.02]
[1724495391089,2.518192,64340.0,64339.0,0.02]
[1724495392596,2.157392,64340.0,64339.0,0.02]
[1724495392796,2.518192,64340.0,64339.0,0.02]
[1724495393191,2.157392,64340.0,64339.0,0.02]
[1724495393387,2.518192,64340.0,64339.0,0.02]
[1724495393587,2.157392,64340.0,64339.0,0.02]
[1724495393793,2.518192,64340.0,64339.0,0.02]
[1724495398397,2.157392,64340.0,64339.0,0.02]
[1724495398598,2.518192,64340.0,64339.0,0.02]
[1724495401406,2.61126741,64340.0,64339.0,0.02]
[1724495401710,2.518192,64340.0,64339.0,0.02]
[1724495402204,2.25046478,64340.0,64339.0,0.02]
[1724495402400,2.61126478,64340.0,64339.0,0.02]
[1724495403005,2.68894078,64340.0,64339.0,0.02]
[1724495403308,0.155362,64336.0,64335.0,0.00023307]
[1724495403497,0.245362,64336.0,64335.0,0.00023307]
[1724495404099,0.245402,64336.0,64335.0,0.00023307]
[1724495404900,0.246402,64336.0,64335.0,0.00523307]
[1724495405102,0.247402,64336.0,64335.0,0.01923307]
[1724495405808,0.246402,64336.0,64335.0,0.01423307]
[1724495406102,0.247402,64336.0,64335.0,0.01323307]
[1724495406308,0.325083,64336.0,64335.0,0.01323307]
[1724495407610,0.330083,64336.0,64335.0,0.00023307]
[1724495409011,0.796403,64336.0,64335.0,0.00023307]
[1724495409507,0.690883,64336.0,64335.0,0.00023307]
[1724495409811,0.71429762,64336.0,64335.0,0.00023307]
[1724495410809,0.71429762,64336.0,64326.0,0.0485]
[1724495410810,0.077692,64327.0,64326.0,0.04653512]
[1724495411005,0.077693,64326.0,64325.0,0.04665512]
[1724495411205,0.167693,64326.0,64325.0,0.04659411]
[1724495411409,0.167693,64326.0,64325.0,0.04659723]
[1724495411601,0.167693,64326.0,64322.0,0.36095195]
[1724495411602,0.077697,64323.0,64322.0,0.00015195]
[1724495411806,0.245394,64323.0,64322.0,0.00015195]
[1724495412005,2.155394,64323.0,64322.0,0.00015195]
[1724495412503,2.155434,64323.0,64322.0,0.00015195]
[1724495412699,2.156434,64323.0,64322.0,0.00015195]
[1724495413502,2.17889536,64323.0,64322.0,0.00015195]
[1724495414100,2.17889536,64323.0,64322.0,0.00715195]
[1724495414316,2.54069536,64323.0,64322.0,0.00715195]
[1724495431721,2.17989536,64323.0,64322.0,0.00715195]
[1724495431916,2.54069536,64323.0,64322.0,0.00715195]
[1724495432324,2.61839236,64323.0,64322.0,0.00715195]
[1724495432727,2.25759236,64323.0,64322.0,0.00715195]
[1724495432929,2.97919236,64323.0,64322.0,0.00715195]
[1724495433812,2.97919236,64323.0,64310.0,0.07254008]
[1724495433813,0.09,64319.0,64310.0,0.049]
[1724495434017,0.09,64311.0,64310.0,0.049]
[1724495434217,0.167712,64311.0,64310.0,0.049]
[1724495434636,0.167752,64311.0,64310.0,0.049]
[1724495435427,0.168752,64311.0,64310.0,0.049]
[1724495436022,0.16890395,64311.0,64310.0,0.049]
[1724495436219,0.07890395,64311.0,64310.0,0.049]
[1724495436422,0.16890395,64311.0,64310.0,0.049]
[1724495437424,0.16990395,64311.0,64310.0,0.049]
[1724495439427,0.16990395,64311.0,64310.0,0.09547816]
[1724495440231,0.16990395,64311.0,64310.0,0.049]
[1724495440528,0.077714,64309.0,64308.0,0.06198598]
[1724495440725,0.077715,64308.0,64307.0,0.06198598]
[1724495440925,0.167715,64308.0,64307.0,0.06198598]
[1724495441328,0.167715,64308.0,64304.0,0.00023307]
[1724495441329,0.09,64308.0,64304.0,0.07780477]
[1724495441529,0.09,64305.0,64304.0,0.07780477]
[1724495441830,0.167719,64305.0,64304.0,0.07780477]
[1724495442135,0.167759,64305.0,64304.0,0.07780477]
[1724495442732,0.168759,64305.0,64304.0,0.07780477]
[1724495443238,0.169759,64305.0,64304.0,0.07780477]
[1724495444733,0.169759,64305.0,64304.0,0.10074032]
[1724495446228,0.169759,64305.0,64304.0,0.02316862]
[1724495447334,0.079759,64305.0,64304.0,0.02316862]
[1724495447733,0.169759,64305.0,64304.0,0.02316862]
[1724495448233,0.079759,64305.0,64304.0,0.02316862]
[1724495448635,0.169759,64305.0,64304.0,0.02316862]
[1724495450934,0.247478,64305.0,64304.0,0.00023307]
[1724495451438,2.157478,64305.0,64304.0,0.04678718]
[1724495451633,2.157478,64305.0,64304.0,0.00023307]
[1724495452040,2.156478,64305.0,64304.0,0.00023307]
[1724495452241,2.157478,64305.0,64304.0,0.00023307]
[1724495453045,2.067478,64305.0,64304.0,0.00023307]
[1724495453232,2.157478,64305.0,64304.0,0.00023307]
[1724495453941,2.18086959,64305.0,64304.0,0.00023307]
[1724495455642,2.54166959,64305.0,64304.0,0.00023307]
[1724495458335,2.18086959,64305.0,64304.0,0.00023307]
[1724495458534,2.54166959,64305.0,64304.0,0.00023307]
[1724495468144,0.077727,64298.0,64297.0,0.04655411]
[1724495468349,0.077729,64297.0,64296.0,0.04655411]
[1724495468646,0.09013178,64297.0,64295.0,0.04655411]
[1724495468846,0.09,64296.0,64295.0,0.04655411]
[1724495469437,0.09004,64296.0,64295.0,0.04655411]
[1724495469841,0.16777,64296.0,64295.0,0.04655411]
[1724495470438,0.16877,64296.0,64295.0,0.04655411]
[1724495470634,0.077731,64295.0,64294.0,0.04655411]
[1724495470838,0.077732,64294.0,64293.0,0.06980402]
[1724495471342,0.077732,64294.0,64293.0,0.0463]
[1724495471541,0.077772,64294.0,64293.0,0.0463]
[1724495471742,0.077735,64292.0,64291.0,0.06207393]
[1724495471936,0.167735,64292.0,64291.0,0.06207393]
[1724495472542,0.077736,64291.0,64290.0,0.06207393]
[1724495472945,0.077736,64291.0,64289.0,0.42310718]
[1724495473340,0.077736,64291.0,64289.0,0.44567823]
[1724495473743,4e-05,64290.0,64289.0,0.44567823]
[1724495474152,4e-05,64290.0,64289.0,0.46998463]
[1724495474444,4e-05,64290.0,64289.0,0.44567823]
[1724495474644,4e-05,64290.0,64289.0,0.08487823]
[1724495475245,4e-05,64290.0,64289.0,0.08482514]
[1724495475441,0.077777,64290.0,64289.0,0.08482514]
[1724495476052,0.078777,64290.0,64289.0,0.08482514]
[1724495476441,0.078777,64290.0,64289.0,0.0228043]
[1724495476948,0.079777,64290.0,64289.0,0.0228043]
[1724495478249,0.079777,64290.0,64289.0,0.08482514]
[1724495479350,0.079777,64290.0,64289.0,0.0228043]
[1724495480546,0.079777,64290.0,64289.0,0.00023325]
[1724495482342,0.079777,64290.0,64289.0,0.06232792]
[1724495484042,0.079777,64290.0,64289.0,0.00023325]
[1724495484356,0.157514,64290.0,64289.0,0.00023325]
[1724495484541,0.157514,64290.0,64289.0,0.04681039]
[1724495484746,0.157514,64290.0,64289.0,0.00023325]
[1724495485142,0.157514,64290.0,64289.0,0.04681039]
[1724495485354,0.157514,64290.0,64289.0,0.00023325]
[1724495486056,2.067514,64290.0,64289.0,0.00023325]
[1724495487555,1.989777,64290.0,64289.0,0.00023325]
[1724495487748,1.989777,64290.0,64289.0,0.04681039]
[1724495489848,1.989777,64290.0,64289.0,0.00023325]
[1724495492159,2.079777,64290.0,64289.0,0.00023325]
[1724495496173,1.989777,64290.0,64289.0,0.00023325]
[1724495496348,2.079777,64290.0,64289.0,0.00023325]
[1724495497358,2.440577,64290.0,64289.0,0.00023325]
[1724495498261,0.00204,64290.0,64289.0,0.12454739]
[1724495498449,0.09204,64290.0,64289.0,0.12437025]
[1724495503559,0.09204,64290.0,64289.0,0.14867653]
[1724495503762,2.00204,64290.0,64289.0,0.14867653]
[1724495505361,2.079776,64290.0,64289.0,0.14867653]
[1724495505962,2.079776,64290.0,64289.0,0.10227653]
[1724495510373,2.079776,64290.0,64289.0,0.07797025]
[1724495510674,2.079776,64290.0,64289.0,0.10227703]
[1724495513567,2.079776,64290.0,64289.0,0.07797025]
[1724495513774,2.079776,64290.0,64289.0,0.10227714]
[1724495514968,2.079776,64290.0,64289.0,0.07797025]
[1724495515666,2.079776,64290.0,64289.0,0.10227685]
[1724495516776,2.079776,64290.0,64289.0,0.07797025]
[1724495517072,2.079776,64290.0,64289.0,0.10227679]
[1724495517463,2.079776,64290.0,64289.0,0.16434393]
[1724495517663,2.079776,64290.0,64289.0,0.10227679]
[1724495517864,2.079776,64290.0,64289.0,0.07797025]
[1724495518064,2.079776,64290.0,64289.0,0.14003898]
[1724495518273,2.079776,64290.0,64289.0,0.16434576]
[1724495518875,2.079776,64290.0,64289.0,0.10227703]
[1724495520077,2.079776,64290.0,64289.0,0.07797025]
[1724495520379,2.079776,64290.0,64289.0,0.10227671]
[1724495522976,0.00204,64290.0,64289.0,0.34775071]
[1724495523178,0.077719,64304.0,64289.0,0.34775071]
[1724495523179,0.09,64308.0,64301.0,0.077722]
[1724495523364,0.09,64308.0,64307.0,0.077715]
[1724495523677,0.2319,64312.0,64311.0,0.07771]
[1724495523971,2.02296629,64312.0,64311.0,0.07771]
[1724495524164,0.09,64312.0,64311.0,0.07771]
[1724495524772,0.09,64312.0,64311.0,0.10200738]
[1724495525165,0.096,64312.0,64311.0,0.10200738]
[1724495525369,0.096,64312.0,64311.0,0.10200733]
[1724495526075,0.102,64312.0,64311.0,0.07771]
[1724495527467,0.102,64312.0,64311.0,0.1002453]
[1724495527872,0.012,64312.0,64311.0,0.1002453]
[1724495528070,0.012,64312.0,64311.0,0.1473453]
[1724495528266,0.102,64312.0,64311.0,0.1473453]
[1724495528468,0.012,64312.0,64311.0,0.1473453]
[1724495528675,0.102,64312.0,64311.0,0.1473453]
[1724495529375,0.102,64312.0,64311.0,0.1002453]
[1724495530767,0.102,64312.0,64311.0,0.07771]
[1724495530974,0.102,64312.0,64306.0,0.077716]
[1724495531165,0.167715,64307.0,64306.0,0.12404148]
[1724495531367,0.167715,64307.0,64306.0,0.077716]
[1724495531973,0.167755,64307.0,64306.0,0.077716]
[1724495532377,0.167755,64307.0,64305.0,0.00023325]
[1724495532378,0.077716,64306.0,64305.0,0.00023325]
[1724495533070,0.077756,64306.0,64305.0,0.00023325]
[1724495533269,0.077756,64306.0,64305.0,0.04655873]
[1724495534674,0.077756,64306.0,64305.0,0.00023325]
[1724495534977,0.077756,64306.0,64305.0,0.07895125]
[1724495540280,4e-05,64306.0,64305.0,0.07895125]
[1724495540775,0.09004,64306.0,64305.0,0.07895125]
[1724495541376,0.09004,64306.0,64305.0,0.43975125]
[1724495542679,0.09004,64306.0,64305.0,0.48607673]
[1724495544486,0.09004,64306.0,64305.0,0.43975125]
[1724495545787,0.09004,64306.0,64305.0,0.07895125]
[1724495545988,0.09004,64306.0,64305.0,0.43975125]
[1724495549083,0.09004,64306.0,64305.0,0.50163576]
[1724495549481,0.09004,64306.0,64305.0,0.43975125]
[1724495550987,4e-05,64306.0,64305.0,0.43975125]
[1724495551181,0.09004,64306.0,64305.0,0.43975125]
[1724495552281,0.09004,64306.0,64305.0,0.55817106]
[1724495552784,0.09004,64306.0,64305.0,0.43975125]
[1724495554485,0.09004,64306.0,64305.0,0.07895125]
[1724495554692,0.09004,64306.0,64305.0,0.43975125]
[1724495554980,0.19884142,64306.0,64305.0,0.43975125]
[1724495555786,0.19884142,64306.0,64305.0,0.55817104]
[1724495555787,0.09004,64306.0,64305.0,0.55817104]
[1724495555989,4e-05,64306.0,64305.0,0.64817104]
[1724495556386,4e-05,64306.0,64305.0,0.28737104]
[1724495556691,4e-05,64306.0,64305.0,0.64817104]
[1724495557385,0.077709,64313.0,64305.0,0.57045304]
[1724495557588,0.077709,64313.0,64312.0,0.0620878]